[Event "2nd Serbia Open Masters 2022"]
[Site "Novi Sad"]
[Date "2022.06.30"]
[Round "3.16"]
[White "Eren, Ataberk"]
[Black "Samant Aditya S"]
[Result "1/2-1/2"]
[ECO "E35"]
[WhiteElo "2273"]
[BlackElo "2433"]
[Annotator "TA"]
[PlyCount "83"]
[EventDate "2022.06.28"]
[EventType "swiss"]
[EventCountry "SRB"]
[SourceTitle "playchess.com"]
[Source "ChessBase"]
[SourceQuality "1"]
[TimeControl "40/5400+30:900+30"]

{[%evp 24,83,11,2,12,7,22,0,0,0,0,0,0,0,0,0,12,4,4,4,4,5,10,0,0,0,0,0,0,0,0,0,0,0,0,0,0,-8,8,8,8,8,8,6,8,8,8,6,10,0,0,0,0,0,0,0,0,0,0,0,0,0]} 1. d4 {[%emt 0:00:06]} Nf6 {[%emt 0:00:11]} 2. c4 {[%emt 0:00:21]} e6 {[%emt 0:00:07]} 3. Nc3 {[%emt 0:00:10]} Bb4 {[%emt 0:00:07]} 4. Qc2 {[%emt 0:00:15]} d5 {[%emt 0:00:43]} 5. cxd5 {[%emt 0:00:08]} exd5 {[%emt 0:00:36]} 6. Bg5 {[%emt 0:00:41]} h6 {[%emt 0:00:40]} 7. Bxf6 {[%emt 0:00:22]} Qxf6 {[%emt 0:00:11]} 8. a3 {[%emt 0:00:07]} Bxc3+ {[%emt 0:00:58]} 9. Qxc3 {[%emt 0:00:17]} O-O {[%emt 0:01:03]} 10. e3 {[%emt 0:00:15]} Bf5 {[%emt 0:03:24]} 11. Nf3 {[%emt 0:00:32]} c6 {[%emt 0:02:07]} 12. Be2 {[%emt 0:00:11]} Nd7 {[%emt 0:00:41][%cal Bb8d7,Bd7f6,Bf6e4][%mdl 32]} 13. O-O {[%emt 0:00:07] The position is equal.} Qd6 {[%emt 0:03:47] 13...Bg4 is setting a new trend. E35: Nimzo-Indian: Classical: 4...d5 5 cxd5 exd5.} 14. b4 {[%emt 0:05:03]} Nf6 {[%emt 0:06:58] [#]} 15. Qc5 $146 {[%emt 0:13:00]} ({Predecessor:} 15. Rfc1 Ne4 16. Qb2 Rac8 17. Bd3 Qf6 18. Bxe4 Bxe4 19. Nd2 Bf5 20. Rc3 Qg6 21. Kh1 {½-½ (48) Hryharovich,A (2100)-Runets,I (2194) Minsk 2022}) 15... Ne4 {[%emt 0:07:00]} 16. Qxd6 {[%emt 0:03:42]} Nxd6 {[%emt 0:00:03]} 17. Nd2 {[%emt 0:03:50][%cal Bf3d2,Bd2b3,Bb3c5,Bc5a4,Ba4b6][%mdl 32]} a5 {[%emt 0:13:59]} 18. Rfc1 {[%emt 0:08:53]} Rfc8 {[%emt 0:06:42]} 19. Nb3 {[%emt 0:08:49]} axb4 {[%emt 0:01:50]} 20. axb4 {[%emt 0:00:07]} Kf8 {[%emt 0:00:28]} 21. g4 {[%emt 0:03:15]} Bd7 {[%emt 0:03:48]} 22. Nc5 {[%emt 0:05:36]} Ke7 {[%emt 0:03:18]} 23. Na4 {[%emt 0:01:24]} Rcb8 {[%emt 0:02:47]} 24. Nb6 {[%emt 0:03:47]} Rxa1 {[%emt 0:00:14]} 25. Rxa1 {[%emt 0:00:03]} Be6 {[%emt 0:00:51]} 26. Ra5 {[%emt 0:13:13]} Kd8 {[%emt 0:05:04]} 27. f3 {[%emt 0:01:25]} Kc7 {[%emt 0:01:43]} 28. Na8+ {[%emt 0:00:03]} Kd7 {[%emt 0:01:27]} 29. Nb6+ {[%emt 0:00:44]} Kc7 {[%emt 0:00:02]} 30. Na4 {[%emt 0:01:11]} b6 {[%emt 0:07:50]} 31. Ra7+ {[%emt 0:00:20]} Rb7 {[%emt 0:00:15]} 32. Ra8 {[%emt 0:00:17]} Nc8 {[%emt 0:00:22]} 33. h4 {[%emt 0:08:56]} Ra7 {[%emt 0:00:27]} 34. Rxa7+ {[%emt 0:00:07]} Nxa7 $11 {[%emt 0:00:01][%mdl 4096] Endgame KBN-KBN} 35. Kf2 {[%emt 0:06:33]} Bd7 {[%emt 0:00:50]} 36. Nb2 {[%emt 0:02:01]} Kd6 {[%emt 0:01:00]} 37. Nd3 {[%emt 0:13:09]} g5 {[%emt 0:06:35]} 38. h5 {[%emt 0:00:00]} f6 {[%emt 0:00:36]} 39. e4 {[%emt 0:00:00]} dxe4 {[%emt 0:11:24]} 40. fxe4 {[%emt 0:00:00]} Nb5 {[%emt 0:00:00]} 41. Ke3 {[%emt 0:00:00]} Na3 {[%emt 0:02:59] [#] ...Nc2+ is the strong threat.} 42. Kd2 {[%emt 0:11:59] Inhibits Nc2. A rather calm draw.  Weighted Error Value: White=0.02 (flawless) /Black=0.02 (flawless)} 1/2-1/2

[Event "2nd Serbia Open Masters 2022"]
[Site "Novi Sad"]
[Date "2022.06.30"]
[Round "3.17"]
[White "Predke, Alexandr"]
[Black "Srihari L R"]
[Result "1-0"]
[ECO "E11"]
[WhiteElo "2688"]
[BlackElo "2404"]
[Annotator "TA"]
[PlyCount "118"]
[EventDate "2022.06.28"]
[EventType "swiss"]
[EventCountry "SRB"]
[SourceTitle "playchess.com"]
[Source "ChessBase"]
[SourceQuality "1"]
[TimeControl "40/5400+30:900+30"]

{[%evp 22,118,25,22,42,37,37,33,51,46,52,49,62,25,26,33,44,51,60,60,55,34,46,44,50,37,34,35,65,79,79,39,42,25,106,110,121,122,122,122,117,119,117,117,117,117,117,129,129,129,130,130,137,137,175,110,110,110,110,110,110,110,110,110,110,110,110,110,110,110,110,110,846,896,921,627,852,868,864,778,4113,3498,2126,1889,29970,29972,29973,29973,29974,29975,29975,29976,29976,29976,29975,29977,29972,6258,5073]} 1. d4 {[%emt 0:00:03]} Nf6 {[%emt 0:00:22]} 2. Nf3 {[%emt 0:00:43]} e6 {[%emt 0:01:37]} 3. c4 {[%emt 0:00:43]} Bb4+ {[%emt 0:00:30]} 4. Bd2 {[%emt 0:00:16]} Qe7 {[%emt 0:00:25]} 5. g3 {[%emt 0:01:44]} Nc6 {[%emt 0:03:40]} 6. Bg2 {[%emt 0:01:10]} Bxd2+ {[%emt 0:02:21]} 7. Nbxd2 {[%emt 0:02:58]} d6 {[%emt 0:04:11]} 8. O-O {[%emt 0:00:06]} O-O {[%emt 0:00:10]} 9. e4 {[%emt 0:00:19]} e5 {[%emt 0:00:24]} 10. d5 {[%emt 0:00:04]} Nb8 {[%emt 0:01:13]} 11. b4 {[%emt 0:00:36]} a5 {[%emt 0:02:56]} 12. a3 {[%emt 0:00:05]} b6 {[%emt 0:18:20] E11: Bogo-Indian.} 13. Qc2 {[%emt 0:00:36]} Nbd7 {[%emt 0:01:52]} 14. Nb3 {[%emt 0:02:00]} axb4 {[%emt 0:02:40] White is slightly better.} 15. axb4 {[%emt 0:00:05]} Bb7 {[%emt 0:00:27]} 16. Nfd2 {[%emt 0:03:35][%cal Bf3d2,Bd2b1,Bb1c3,Bc3a4][%mdl 32]} c5 {[%emt 0:17:58] [#]} 17. dxc6 $146 {[%emt 0:19:37]} ({Predecessor:} 17. bxc5 Nxc5 18. Nxc5 bxc5 19. Rab1 Rfb8 20. Rb3 Bc8 21. Rfb1 Qc7 22. Qb2 Rxb3 23. Qxb3 {1-0 (34) Grapsa,G (2101)-Koumanis,G Nikaia 2002}) 17... Bxc6 {[%emt 0:00:01]} 18. Qd3 {[%emt 0:00:34]} Rxa1 {[%emt 0:03:55]} 19. Rxa1 {[%emt 0:00:15]} Ra8 {[%emt 0:00:11]} 20. Rxa8+ {[%emt 0:00:15]} Bxa8 {[%emt 0:00:07]} 21. Nb1 {[%emt 0:09:19]} d5 {[%emt 0:12:31]} 22. cxd5 {[%emt 0:02:17]} Qxb4 {[%emt 0:00:10]} 23. Qc3 {[%emt 0:00:42]} Qxc3 {[%emt 0:05:51]} 24. Nxc3 {[%emt 0:00:25]} Bb7 {[%emt 0:03:27]} 25. Bf1 {[%emt 0:00:29]} Kf8 {[%emt 0:03:17]} 26. f3 {[%emt 0:01:08]} Ne8 $1 {[%emt 0:04:53][%cal Of7f5]} 27. Bb5 {[%emt 0:00:46]} Bc8 {[%emt 0:00:02] [#]} (27... Nb8 $11) 28. Na4 $1 $16 {[%emt 0:01:14]} Ke7 {[%emt 0:02:54]} 29. Bxd7 {[%emt 0:04:18]} Bxd7 {[%emt 0:00:00]} 30. Nxb6 {[%emt 0:00:06][%mdl 4096] Endgame KBN-KNN} Bb5 {[%emt 0:00:05]} 31. Nc8+ {[%emt 0:00:26]} Kd8 {[%emt 0:00:59]} 32. Na7 {[%emt 0:00:08]} Bd7 {[%emt 0:00:22]} 33. Nc5 {[%emt 0:00:47]} f5 {[%emt 0:00:49]} 34. Kf2 {[%emt 0:04:25] White is more active.} Nf6 {[%emt 0:00:13]} 35. Ke2 {[%emt 0:00:57]} g6 {[%emt 0:03:10]} 36. Kd3 {[%emt 0:02:24]} fxe4+ {[%emt 0:00:20]} 37. fxe4 {[%emt 0:00:16]} Ng4 {[%emt 0:00:23]} 38. h4 {[%emt 0:00:55]} (38. h3 $18 Nf2+ 39. Ke3 Nd1+ 40. Ke2) 38... Kc7 {[%emt 0:01:31]} 39. Nxd7 {[%emt 0:01:35]} Kxd7 {[%emt 0:00:01] KN-KN} 40. Nb5 {[%emt 0:00:00]} h6 {[%emt 0:00:00]} 41. Ke2 {[%emt 0:02:02]} h5 {[%emt 0:18:20]} 42. Nc3 {[%emt 0:07:32]} Kd6 {[%emt 0:00:20]} 43. Nd1 {[%emt 0:00:05]} Kc5 {[%emt 0:01:15]} 44. Ne3 {[%emt 0:13:02] aiming for Nxg4.} Nf6 {[%emt 0:01:20]} 45. Kd3 {[%emt 0:36:58]} Kb5 {[%emt 0:01:16]} 46. Nc4 {[%emt 0:00:00]} Nd7 {[%emt 0:01:05][%mdl 8192] [#] Loses the game.} (46... Ng4 $16 47. Nd6+ Kb6) 47. Nd6+ $1 $18 {[%emt 0:00:00]} Kb4 {[%emt 0:00:22]} 48. Nf7 {[%emt 0:00:00]} Kc5 {[%emt 0:00:17]} 49. Ke3 {[%emt 0:00:00]} Kb6 {[%emt 0:00:55]} 50. Nh8 {[%emt 0:00:00]} Nf8 {[%emt 0:00:01]} 51. Kf3 {[%emt 0:00:00]} Kc5 {[%emt 0:00:14]} 52. g4 {[%emt 0:00:00][%cal Oh8g6] Strongly threatening Nxg6!} hxg4+ {[%emt 0:01:14]} 53. Kxg4 {[%emt 0:00:00]} Kd4 {[%emt 0:00:04] [#]} 54. Nxg6 $1 {[%emt 0:00:00][%mdl 512]} Nxg6 {[%emt 0:00:24] KN-K3P} 55. h5 {[%emt 0:00:00][%cal Bh4h5,Bh5h6,Bh6h7][%mdl 32]} Nh8 {[%emt 0:00:58]} 56. Kf5 {[%emt 0:00:00]} Nf7 {[%emt 0:00:30]} 57. Kg6 {[%emt 0:00:00]} Nd6 {[%emt 0:00:33]} 58. h6 {[%emt 0:00:00]} Kxe4 {[%emt 0:00:31]} 59. h7 {[%emt 0:00:00]} Kxd5 {[%emt 0:00:49] Weighted Error Value: White=0.05 (flawless) /Black=0.28 (precise)} 1-0

[Event "2nd Serbia Open Masters 2022"]
[Site "Novi Sad"]
[Date "2022.06.30"]
[Round "3.18"]
[White "Muthaiah AL"]
[Black "Ivic, Velimir"]
[Result "0-1"]
[ECO "A31"]
[WhiteElo "2401"]
[BlackElo "2623"]
[Annotator "TA"]
[PlyCount "88"]
[EventDate "2022.06.28"]
[EventType "swiss"]
[EventCountry "SRB"]
[SourceTitle "playchess.com"]
[Source "ChessBase"]
[SourceQuality "1"]
[TimeControl "40/5400+30:900+30"]

{[%evp 12,88,33,35,27,15,22,-11,22,0,15,3,22,12,16,10,22,8,13,0,20,0,0,0,0,0,0,0,0,-21,0,-35,-17,-43,0,0,149,100,118,98,99,74,78,83,59,74,83,79,222,30,28,0,0,0,0,0,0,0,0,0,0,0,0,0,0,-148,-164,-597,-589,-582,-579,-547,-529,-485,-485,-727,-485,-29978,-29979]} 1. d4 {[%emt 0:00:23]} Nf6 {[%emt 0:00:14]} 2. c4 {[%emt 0:00:29]} g6 {[%emt 0:00:33]} 3. g3 {[%emt 0:00:51]} c5 {[%emt 0:00:38]} 4. Nf3 {[%emt 0:02:00]} cxd4 {[%emt 0:00:55]} 5. Nxd4 {[%emt 0:00:56]} Nc6 {[%emt 0:00:19]} 6. Bg2 {[%emt 0:07:29]} Bg7 {[%emt 0:00:13]} 7. O-O {[%emt 0:00:57] The main line 7.0-0 scores better than 7.Nc3.} h5 {[%emt 0:01:12] A31: Symmetrical English: 2 Nf3 Nf6 3 d4.} 8. h4 {[%emt 0:11:19]} Ng4 {[%emt 0:00:48]} 9. Nxc6 {[%emt 0:04:53]} (9. e3 {feels hotter.} d5 10. Bxd5 O-O 11. Nc3) 9... bxc6 {[%emt 0:00:24] The position is equal.} 10. Qc2 {[%emt 0:02:19] [#]} O-O $146 {[%emt 0:01:20]} ({Predecessor:} 10... Qb6 11. c5 Qb4 12. a3 Qb5 13. Ra2 a5 14. a4 Qb7 15. Na3 Qa7 16. b3 O-O {0-1 (46) Batchelor,P (2312)-Altschuler,J (2060) England 2015}) 11. Nc3 {[%emt 0:00:28]} Bb7 {[%emt 0:15:11]} 12. Bg5 {[%emt 0:03:32]} d6 {[%emt 0:02:52]} 13. Rad1 {[%emt 0:04:48]} Qc7 {[%emt 0:01:12]} 14. b3 {[%emt 0:01:06]} Rab8 {[%emt 0:03:17]} 15. e4 {[%emt 0:14:11]} Rfe8 {[%emt 0:03:22]} 16. Rfe1 {[%emt 0:10:41][%cal Bf1e1,Be1e3,Be3b3][%mdl 32]} Bc8 {[%emt 0:03:21]} 17. Na4 {[%emt 0:05:49]} Ne5 {[%emt 0:07:01]} 18. c5 {[%emt 0:03:31]} Bg4 {[%emt 0:01:14]} 19. cxd6 {[%emt 0:01:14]} exd6 {[%emt 0:01:37][%cal Be7d6,Bd6d5][%mdl 32]} 20. Rc1 {[%emt 0:00:18]} Rbc8 {[%emt 0:04:42]} 21. Re3 {[%emt 0:01:58]} Qa5 {[%emt 0:02:32]} 22. Bf4 {[%emt 0:12:45]} d5 {[%emt 0:05:22]} (22... c5 $5 {[%cal Rc5c4]} 23. Bxe5 Bxe5 $15) 23. Nc5 {[%emt 0:01:58]} Qa3 {[%emt 0:14:38]} (23... Bf8 $11) 24. b4 {[%emt 0:03:57]} (24. exd5 cxd5 25. b4 (25. Bxd5 Bf5 $17) 25... Qxb4 26. Bxd5 Qd4 $15) (24. f3 $142) 24... Qxb4 $16 {[%emt 0:00:48] [#]} 25. Rb3 $1 {[%emt 0:00:11]} Qa5 {[%emt 0:09:01]} 26. Nb7 {[%emt 0:00:09][%mdl 64] Deflection} Qc7 {[%emt 0:06:47]} 27. exd5 {[%emt 0:00:12]} c5 {[%emt 0:00:08]} 28. Qxc5 {[%emt 0:02:40]} Qd7 {[%emt 0:01:18]} 29. Qa3 {[%emt 0:01:05]} ({Stronger than} 29. Qxa7 Rxc1+ 30. Bxc1 Bh3 $17) 29... Bh3 {[%emt 0:07:42]} (29... Rxc1+ $16 30. Qxc1 Rc8) 30. Rxc8 $2 {[%emt 0:01:26]} (30. Nc5 $18 Qf5 31. Be4 (31. Qxa7 Ra8 $14)) 30... Rxc8 $11 {[%emt 0:00:33]} 31. Nd6 {[%emt 0:00:32]} Bxg2 $1 {[%emt 0:01:54]} 32. Kxg2 {[%emt 0:00:57]} Rd8 $36 {[%emt 0:00:10][%mdl 2048] Black has some pressure.} 33. Re3 {[%emt 0:00:53]} Ng4 {[%emt 0:03:14]} 34. Rb3 {[%emt 0:00:43] Rb7 is the strong threat.} Be5 {[%emt 0:00:31]} 35. Bxe5 {[%emt 0:00:42]} Nxe5 {[%emt 0:00:01]} 36. Ne4 {[%emt 0:00:18] aiming for Nf6+.} (36. Re3 $2 Ng4 37. Ne4 Nxe3+ 38. Qxe3 Qxd5 $19) 36... Qxd5 {[%emt 0:00:03]} 37. f3 {[%emt 0:00:14] Threatens to win with Nf6+.} Qd1 {[%emt 0:02:09] Strongly threatening ...Qe2+.} 38. Qb2 {[%emt 0:01:04] Prevents Qe2+.} (38. Qxa7 $11 {keeps the balance.} Nd3 39. Qe3) 38... Nd3 $17 {[%emt 0:01:20] Black is more active.} 39. Nf6+ $2 {[%emt 0:00:21]} (39. Qc3 {is a better chance.}) 39... Kh8 $19 {[%emt 0:00:47]} 40. Rxd3 {[%emt 0:00:00]} Qxd3 {[%emt 0:00:00]} (40... Rxd3 41. Ne4+ Rd4 42. Qb8+ Rd8 43. Qe5+ Kh7 44. Nf6+ Kh6 45. Qg5+ Kg7 46. Nxh5+ Kg8 47. Nf6+ Kf8 48. Ne4 $17) 41. Ne4+ {[%emt 0:09:49]} Qd4 {[%emt 0:00:36]} 42. Qb7 {[%emt 0:00:12]} Kg7 {[%emt 0:01:01]} 43. Qe7 {[%emt 0:01:46]} (43. Qc7 $142) 43... Qb2+ {[%emt 0:00:44]} 44. Kh3 {[%emt 0:00:16] [#]} (44. Nf2 $19 Rd1 45. a3) 44... Rd1 {[%emt 0:00:24] Weighted Error Value: White=0.56/Black=0.23 (precise)} 0-1

[Event "2nd Serbia Open Masters 2022"]
[Site "Novi Sad"]
[Date "2022.06.30"]
[Round "3.19"]
[White "Indjic, Aleksandar"]
[Black "Harikrishnan.A.Ra"]
[Result "0-1"]
[ECO "D46"]
[WhiteElo "2621"]
[BlackElo "2396"]
[Annotator "TA"]
[PlyCount "56"]
[EventDate "2022.06.28"]
[EventType "swiss"]
[EventCountry "SRB"]
[SourceTitle "playchess.com"]
[Source "ChessBase"]
[SourceQuality "1"]
[TimeControl "40/5400+30:900+30"]

{[%evp 19,56,1,12,-51,-52,-43,-47,-43,-41,-28,-39,-124,-112,-105,-104,-378,-430,-416,-410,-395,-318,-730,-743,-29980,-29981,-29981,-29982,-29987,-29986,-29986,-29987,-29991,-29992,-29995,-29996,-29996,-29991,-29994,-29992]} 1. d4 {[%emt 0:00:28]} d5 {[%emt 0:00:26]} 2. Nf3 {[%emt 0:00:15]} Nf6 {[%emt 0:00:09]} 3. c4 {[%emt 0:00:13]} c6 {[%emt 0:00:25]} 4. Nc3 {[%emt 0:00:47]} e6 {[%emt 0:00:27]} 5. e3 {[%emt 0:03:13]} Nbd7 {[%emt 0:00:10]} 6. Qc2 {[%emt 0:00:13]} Bd6 {[%emt 0:00:21]} 7. Bd3 {[%emt 0:04:06]} O-O {[%emt 0:00:58]} 8. O-O {[%emt 0:02:17]} dxc4 {[%emt 0:00:19]} 9. Bxc4 {[%emt 0:00:09]} b5 {[%emt 0:00:05][%cal Bb7b5,Bb5b4][%mdl 32]} 10. Bd3 {[%emt 0:04:56]} Bb7 {[%emt 0:00:19]} 11. a4 {[%emt 0:04:08] D46: Semi-Slav: 5 e3 Nbd7 6 Bd3, Black avoids the Meran.} (11. e4 $11 e5 12. Rd1) 11... b4 $15 {[%emt 0:05:11]} 12. Ne4 {[%emt 0:00:33]} Nxe4 {[%emt 0:04:45]} 13. Bxe4 {[%emt 0:00:07] Black is slightly better.} f5 {[%emt 0:00:53]} 14. Bd3 {[%emt 0:00:20]} ({But not} 14. Bxc6 $2 Rc8 15. Qb3 Rxc6 $19) 14... c5 {[%emt 0:00:59] Hoping for ...Bxf3.} 15. e4 {[%emt 0:12:15]} ({White should try} 15. Qe2 $15) 15... cxd4 $17 {[%emt 0:05:28] [#]} 16. Nxd4 $146 {[%emt 0:06:38]} ({Predecessor:} 16. Bg5 Qe8 17. Nxd4 Qh5 18. h4 Rfc8 19. Qd1 Qxd1 20. Raxd1 fxe4 21. Bb5 Nc5 22. Nxe6 {1-0 (43) Mascaro March,P (2376)-Gelas,C (2304) Badalona 2019}) 16... Nc5 $36 {[%emt 0:07:51][%cal Od6h2][%mdl 2048] aiming for ...Bxh2+! Black is really pushing.} ({Resist} 16... Qh4 17. g3 Qf6 18. Nxe6 $1 $16) 17. exf5 $2 {[%emt 0:14:37][%mdl 8192] [#]} (17. Be3 $17) 17... Bxh2+ $1 $19 {[%emt 0:27:00][%mdl 576] Discovered Attack} 18. Kxh2 {[%emt 0:00:05]} Qxd4 {[%emt 0:00:16]} 19. Be2 {[%emt 0:05:39]} Rxf5 {[%emt 0:01:04] Strongly threatening ...Qh4+.} ({Not} 19... b3 20. Qc4 Qe5+ 21. Bf4 Qxf5 22. Bd6 $17) 20. Be3 $2 {[%emt 0:00:30] [#]} (20. Kg1 Qd5 21. f3) 20... Qd5 $1 {[%emt 0:00:44][%csl Gb7][%cal Rd5g2]} 21. Bf3 {[%emt 0:02:54] [#]} Rh5+ $1 {[%emt 0:03:04][%mdl 512] Black mates.} 22. Kg3 {[%emt 0:00:32]} Qe5+ {[%emt 0:00:30]} 23. Kg4 {[%emt 0:00:21]} Ne4 {[%emt 0:01:09]} 24. Bxe4 {[%emt 0:01:02]} Bxe4 {[%emt 0:00:16]} 25. Qxe4 {[%emt 0:00:28]} Qxe4+ {[%emt 0:00:09]} 26. Kxh5 {[%emt 0:00:05]} g6+ {[%emt 0:00:55]} 27. Kg5 {[%emt 0:01:39]} Kg7 {[%emt 0:00:18][%csl Gg7][%cal Rh7h6]} 28. Rh1 {[%emt 0:00:38]} Rd8 {[%emt 0:01:45] White got outplayed after the opening.  Weighted Error Value: White=0.85/Black=0.05 (flawless)} 0-1

[Event "2nd Serbia Open Masters 2022"]
[Site "Novi Sad"]
[Date "2022.06.30"]
[Round "3.20"]
[White "Aryan Chopra"]
[Black "Damjanovic, Vuk"]
[Result "1-0"]
[ECO "C11"]
[WhiteElo "2609"]
[BlackElo "2393"]
[Annotator "TA"]
[PlyCount "97"]
[EventDate "2022.06.28"]
[EventType "swiss"]
[EventCountry "SRB"]
[SourceTitle "playchess.com"]
[Source "ChessBase"]
[SourceQuality "1"]
[TimeControl "40/5400+30:900+30"]

{[%evp 24,97,34,38,35,38,48,32,34,44,28,35,53,74,79,65,72,80,86,89,100,82,82,66,64,79,131,117,117,103,114,96,134,72,81,55,98,91,107,96,106,0,100,86,132,132,132,132,132,132,132,132,132,132,132,132,500,500,497,475,475,475,442,435,1579,1527,29957,2410,12410,1767,12652,12158,29978,29979,29978,29977]} 1. e4 {[%emt 0:00:03]} e6 {[%emt 0:02:22]} 2. d4 {[%emt 0:00:09]} d5 {[%emt 0:00:26]} 3. Nc3 {[%emt 0:00:08]} Nf6 {[%emt 0:00:37]} 4. e5 {[%emt 0:00:11]} Nfd7 {[%emt 0:00:13]} 5. f4 {[%emt 0:00:13]} c5 {[%emt 0:00:48]} 6. Nf3 {[%emt 0:00:09]} Nc6 {[%emt 0:00:30]} 7. Be3 {[%emt 0:00:33]} cxd4 {[%emt 0:01:52]} 8. Nxd4 {[%emt 0:00:06]} Bc5 {[%emt 0:00:31]} 9. Qd2 {[%emt 0:00:38]} Bxd4 {[%emt 0:01:04]} 10. Bxd4 {[%emt 0:00:06]} Nxd4 {[%emt 0:00:12]} 11. Qxd4 {[%emt 0:00:04]} Qb6 {[%emt 0:00:34]} 12. Nb5 {[%emt 0:10:33]} Qxd4 {[%emt 0:01:14]} 13. Nxd4 {[%emt 0:00:04]} g5 {[%emt 0:00:21] C11: French: Classical System: 4 e5 and 4 Bg5 dxe4.} 14. g3 {[%emt 0:00:10]} Ke7 {[%emt 0:00:18]} 15. Kd2 {[%emt 0:03:04]} Rg8 {[%emt 0:05:56] White is slightly better.} 16. Bd3 {[%emt 0:02:30] [#]} gxf4 $146 {[%emt 0:20:39]} ({Predecessor:} 16... h6 17. h3 Nc5 18. Raf1 Bd7 19. f5 exf5 20. Nxf5+ Bxf5 21. Bxf5 Rgf8 22. h4 Rg8 {1-0 (38) Grechihin,V-Zhitnikov,S Smolensk 1992}) 17. gxf4 {[%emt 0:00:06] Strongly threatening Rhg1.} Rg4 {[%emt 0:00:05]} 18. Ke3 {[%emt 0:04:37]} f6 {[%emt 0:00:27]} 19. Rag1 {[%emt 0:04:35]} Rxg1 {[%emt 0:00:30]} 20. exf6+ {[%emt 0:00:05]} Nxf6 {[%emt 0:00:23]} 21. Rxg1 {[%emt 0:00:04]} Bd7 {[%emt 0:03:08]} 22. Nf3 {[%emt 0:00:13]} Rf8 {[%emt 0:25:02]} 23. Ne5 {[%emt 0:03:04][%cal Od3h7]} Kd6 {[%emt 0:01:08]} 24. Rg7 {[%emt 1:11:05]} h5 {[%emt 0:04:08]} (24... Bc6 $142) 25. Be2 {[%emt 0:00:00]} Bc6 {[%emt 0:04:34]} 26. c3 {[%emt 0:00:00]} a5 {[%emt 0:03:27]} 27. h4 {[%emt 0:00:00]} Kc5 {[%emt 0:02:34]} 28. Bf1 {[%emt 0:00:00]} ({Better is} 28. a3) 28... Kd6 $16 {[%emt 0:05:38]} 29. Bh3 {[%emt 0:00:00] Threatens to win with Nf7+.} Bd7 {[%emt 0:01:00]} 30. a3 {[%emt 0:00:00]} a4 {[%emt 0:01:58]} 31. Kd4 {[%emt 0:00:00]} Bc8 {[%emt 0:00:58]} 32. Ke3 {[%emt 0:00:00] White is much more active.} Bd7 {[%emt 0:00:17]} 33. Bg2 {[%emt 0:00:00]} Rg8 {[%emt 0:01:29]} (33... b6 $142) 34. Rxg8 {[%emt 0:00:00]} Nxg8 {[%emt 0:00:02]} 35. Nxd7 {[%emt 0:01:19]} Kxd7 {[%emt 0:00:02][%mdl 4096] Endgame KB-KN} 36. f5 {[%emt 0:00:22]} Ne7 {[%emt 0:01:23] [#]} 37. fxe6+ {[%emt 0:00:15]} Kxe6 {[%emt 0:00:02]} 38. Kf4 {[%emt 0:00:16]} Kf6 {[%emt 0:00:01]} 39. Bf3 {[%emt 0:00:13]} b6 $2 {[%emt 0:01:12][%mdl 8192] This move loses the game for Black.} (39... Nf5 $16 {is a better chance.} 40. Bxh5 (40. Bxd5 Nxh4 41. Bxb7 Ng6+ 42. Ke3 Ne5 $16) 40... Nxh4) 40. Bxh5 $18 {[%emt 0:00:00]} Nf5 {[%emt 0:00:00]} 41. Bf3 {[%emt 0:03:07] [#] aiming for h5.} Nxh4 {[%emt 0:00:22]} 42. Bxd5 {[%emt 0:00:04]} Ng6+ {[%emt 0:00:33]} 43. Ke4 {[%emt 0:04:57]} Ne5 {[%emt 0:00:27]} (43... Ne7 $142 44. c4 Nf5) 44. Ba2 {[%emt 0:03:13]} Nd7 {[%emt 0:02:34]} 45. Kd5 {[%emt 0:00:24]} (45. Bc4 $142 Kg5 46. Kd5 Nc5 47. Kc6 Kf6 48. Bb5 Ke6 49. Kxb6 Kd5 50. Ka5) 45... Ke7 {[%emt 0:01:34]} 46. Bc4 {[%emt 0:01:36] Intending Bb5 and mate.} Kd8 {[%emt 0:00:59]} 47. Bb5 {[%emt 0:00:37] Threatening mate with Bxd7.} Kc7 {[%emt 0:00:18]} 48. Bxd7 {[%emt 0:00:59]} Kxd7 {[%emt 0:00:07]} 49. Kc4 {[%emt 0:00:07] Weighted Error Value: White=0.11 (very precise) /Black=0.69} 1-0